[Event "Chpt France Universitaire 2024"]
[Site "Bastia, France"]
[Date "2024.04.06"]
[Round "4.3"]
[White "Roux, Baptiste"]
[Black "Harutyunyan, Safar"]
[Result "1-0"]
[TimeControl "15min+5s"]
[WhiteElo "2361"]
[BlackElo "2266"]

1. e4 {[%clk 00:15:05]} {[%emt 00:00:01]} e6 {[%clk 00:15:05]} 2. d4 {[%clk
00:15:05]} {[%emt 00:00:03]} d5 {[%clk 00:15:05]} 3. exd5 {[%clk 00:14:55]}
{[%emt 00:00:15]} exd5 {[%clk 00:15:05]} 4. Nf3 {[%clk 00:14:55]} Nf6 {[%clk
00:15:05]} 5. Bd3 {[%clk 00:14:55]} {[%emt 00:00:01]} c5 {[%clk 00:15:05]}
{[%emt 00:00:01]} 6. O-O {[%clk 00:14:55]} {[%emt 00:00:05]} c4 {[%clk
00:15:05]} 7. Re1+ {[%clk 00:14:55]} {[%emt 00:00:01]} Be7 {[%clk 00:15:05]} 8.
Bf1 {[%clk 00:14:55]} {[%emt 00:00:02]} O-O {[%clk 00:15:05]} {[%emt 00:00:02]}
9. b3 {[%clk 00:14:55]} {[%emt 00:00:01]} cxb3 {[%clk 00:15:05]} {[%emt
00:00:01]} 10. axb3 {[%clk 00:14:55]} Nc6 {[%clk 00:15:05]} 11. c3 {[%clk
00:13:56]} {[%emt 00:01:04]} Bf5 {[%clk 00:15:05]} {[%emt 00:00:03]} 12. Bf4
{[%clk 00:12:51]} {[%emt 00:01:09]} Ne4 {[%clk 00:14:58]} {[%emt 00:00:12]} 13.
Ne5 {[%clk 00:11:30]} {[%emt 00:01:26]} Nxe5 {[%clk 00:14:27]} {[%emt
00:00:36]} 14. Bxe5 {[%clk 00:11:16]} {[%emt 00:00:19]} f6 {[%clk 00:13:49]}
{[%emt 00:00:43]} 15. Bf4 {[%clk 00:11:04]} {[%emt 00:00:17]} g5 {[%clk
00:13:49]} {[%emt 00:00:05]} 16. Bg3 {[%clk 00:11:02]} {[%emt 00:00:07]} a6
{[%clk 00:13:34]} {[%emt 00:00:20]} 17. Bd3 {[%clk 00:10:52]} {[%emt 00:00:15]}
Rc8 {[%clk 00:13:21]} {[%emt 00:00:18]} 18. f3 {[%clk 00:10:19]} {[%emt
00:00:37]} Nxg3 {[%clk 00:12:20]} {[%emt 00:01:07]} 19. hxg3 {[%clk 00:10:19]}
{[%emt 00:00:02]} Bxd3 {[%clk 00:12:20]} {[%emt 00:00:02]} 20. Qxd3 {[%clk
00:10:19]} Bd6 {[%clk 00:12:18]} {[%emt 00:00:08]} 21. g4 {[%clk 00:09:42]} Bg3
{[%clk 00:10:48]} {[%emt 00:02:17]} 22. Re2 {[%clk 00:08:20]} Re8 {[%clk
00:05:19]} {[%emt 00:07:03]} 23. Rxe8+ {[%clk 00:06:19]} Qxe8 {[%clk 00:05:19]}
24. Nd2 {[%clk 00:06:19]} Bf4 {[%clk 00:05:19]} 25. Nf1 {[%clk 00:06:19]} Qc6
{[%clk 00:05:19]} 26. g3 {[%clk 00:06:19]} Bc7 {[%clk 00:05:19]} 27. Rc1 {[%clk
00:06:19]} Re8 {[%clk 00:05:19]} 28. Kf2 {[%clk 00:06:19]} Qe6 {[%clk
00:05:19]} 29. c4 {[%clk 00:06:19]} dxc4 {[%clk 00:05:19]} 30. Qxc4 {[%clk
00:06:19]} Bb6 {[%clk 00:04:14]} {[%emt 00:06:51]} 31. Ne3 {[%clk 00:03:30]}
{[%emt 00:00:13]} Qxc4 {[%clk 00:03:30]} {[%emt 00:00:49]} 32. Rxc4 {[%clk
00:03:30]} {[%emt 00:00:02]} Rd8 {[%clk 00:03:30]} 33. Nf5 {[%clk 00:03:30]}
{[%emt 00:00:04]} a5 {[%clk 00:02:53]} {[%emt 00:00:42]} 34. Ke2 {[%clk
00:02:56]} {[%emt 00:00:39]} Kf7 {[%clk 00:02:53]} {[%emt 00:00:04]} 35. Kd3
{[%clk 00:02:56]} {[%emt 00:00:04]} Ke6 {[%clk 00:02:39]} {[%emt 00:00:20]} 36.
Ke4 {[%clk 00:02:35]} {[%emt 00:00:26]} Kd7 {[%clk 00:02:13]} {[%emt 00:00:30]}
37. Rc1 {[%clk 00:02:04]} {[%emt 00:00:37]} Re8+ {[%clk 00:02:11]} {[%emt
00:00:07]} 38. Kd3 {[%clk 00:02:04]} {[%emt 00:00:01]} Ra8 {[%clk 00:01:00]}
{[%emt 00:01:16]} 39. Re1 {[%clk 00:02:01]} a4 {[%clk 00:01:00]} 40. bxa4
{[%clk 00:02:01]} Rxa4 {[%clk 00:01:00]} 41. Re7+ {[%clk 00:02:01]} Kc6 {[%clk
00:01:00]} 42. Rxh7 {[%clk 00:02:01]} Bc7 {[%clk 00:01:00]} 43. Rf7 {[%clk
00:02:01]} Bd8 {[%clk 00:01:00]} 44. Ne3 {[%clk 00:02:01]} Ra3+ {[%clk
00:01:00]} 45. Ke4 {[%clk 00:02:01]} b5 {[%clk 00:01:00]} 46. Nd5 {[%clk
00:02:01]} Ra1 {[%clk 00:01:00]} 47. Nxf6 {[%clk 00:02:01]} Re1+ {[%clk
00:01:00]} 48. Kd3 {[%clk 00:02:01]} b4 {[%clk 00:01:00]} 49. Kc4 {[%clk
00:02:01]} Ba5 {[%clk 00:01:00]} 1-0

[Event "Chpt France Universitaire 2024"]
[Site "Bastia, France"]
[Date "2024.04.06"]
[Round "4.4"]
[White "Eveno, Nathan"]
[Black "Dubuisson, Samuel"]
[Result "1-0"]
[TimeControl "15min+5s"]
[WhiteElo "2192"]
[BlackElo "2129"]

1. e4 {[%emt 00:00:04]} c5 {[%clk 00:15:05]} {[%emt 00:00:01]} 2. Nf3 {[%clk
00:15:05]} {[%emt 00:00:01]} d6 {[%clk 00:15:05]} {[%emt 00:00:01]} 3. Bb5+
{[%clk 00:15:00]} {[%emt 00:00:11]} Nd7 {[%clk 00:15:05]} {[%emt 00:00:03]} 4.
Ba4 {[%clk 00:15:00]} {[%emt 00:00:04]} Rb8 {[%clk 00:14:44]} {[%emt 00:00:27]}
5. c4 {[%clk 00:14:56]} {[%emt 00:00:09]} a6 {[%clk 00:12:20]} {[%emt
00:02:29]} 6. Nc3 {[%clk 00:14:56]} {[%emt 00:00:01]} Qa5 {[%clk 00:12:13]}
{[%emt 00:00:11]} 7. d4 {[%clk 00:13:26]} {[%emt 00:01:35]} b5 {[%clk
00:12:13]} {[%emt 00:00:05]} 8. Bb3 {[%clk 00:13:26]} {[%emt 00:00:03]} b4
{[%clk 00:11:56]} {[%emt 00:00:22]} 9. Ne2 {[%clk 00:13:23]} {[%emt 00:00:09]}
Ngf6 {[%clk 00:11:32]} {[%emt 00:00:28]} 10. Ng3 {[%clk 00:13:19]} {[%emt
00:00:08]} cxd4 {[%clk 00:09:37]} {[%emt 00:02:00]} 11. Nxd4 {[%clk 00:13:09]}
{[%emt 00:00:16]} Bb7 {[%clk 00:09:37]} 12. O-O {[%clk 00:12:42]} {[%emt
00:00:32]} g6 {[%clk 00:09:18]} {[%emt 00:00:24]} 13. Re1 {[%clk 00:12:25]}
{[%emt 00:00:23]} Bg7 {[%clk 00:09:18]} {[%emt 00:00:03]} 14. Bd2 {[%clk
00:12:06]} {[%emt 00:00:23]} Qb6 {[%clk 00:08:34]} {[%emt 00:00:49]} 15. Be3
{[%clk 00:09:34]} {[%emt 00:02:38]} Nc5 {[%clk 00:08:23]} {[%emt 00:00:16]} 16.
e5 {[%clk 00:08:50]} {[%emt 00:00:49]} Nfd7 {[%clk 00:07:09]} {[%emt 00:01:18]}
17. e6 {[%clk 00:08:46]} {[%emt 00:00:09]} fxe6 {[%clk 00:05:36]} {[%emt
00:01:39]} 18. Nxe6 {[%clk 00:08:46]} {[%emt 00:00:03]} Bxb2 {[%clk 00:04:59]}
{[%emt 00:00:42]} 19. Ba4 {[%clk 00:06:24]} {[%emt 00:02:29]} Bc6 {[%clk
00:04:24]} {[%emt 00:00:39]} 20. Bxc6 {[%clk 00:05:22]} {[%emt 00:01:07]} Qxc6
{[%clk 00:04:24]} {[%emt 00:00:03]} 21. Rb1 {[%clk 00:03:41]} {[%emt 00:01:46]}
Bc3 {[%clk 00:04:24]} {[%emt 00:00:04]} 22. Bd4 {[%clk 00:03:41]} {[%emt
00:00:02]} Bxd4 {[%clk 00:02:06]} {[%emt 00:02:23]} 23. Qxd4 {[%clk 00:03:40]}
{[%emt 00:00:05]} Nf6 {[%clk 00:01:39]} {[%emt 00:00:32]} 24. Nf4 {[%clk
00:02:35]} {[%emt 00:01:10]} Kf7 {[%clk 00:01:31]} {[%emt 00:00:14]} 25. Nd5
{[%clk 00:02:12]} {[%emt 00:00:29]} e5 {[%clk 00:00:58]} {[%emt 00:00:37]} 26.
Qd2 {[%clk 00:02:10]} {[%emt 00:00:06]} Nxd5 {[%clk 00:00:58]} {[%emt
00:00:05]} 27. cxd5 {[%clk 00:02:10]} {[%emt 00:00:02]} Qb7 {[%clk 00:00:55]}
{[%emt 00:00:09]} 28. f4 {[%clk 00:02:10]} {[%emt 00:00:03]} Rhe8 {[%clk
00:00:41]} {[%emt 00:00:18]} 29. fxe5 {[%clk 00:01:06]} {[%emt 00:01:10]} Rxe5
{[%clk 00:00:41]} {[%emt 00:00:01]} 30. Rxe5 {[%clk 00:01:06]} {[%emt
00:00:01]} dxe5 {[%clk 00:00:41]} {[%emt 00:00:01]} 31. Rf1+ {[%clk 00:01:06]}
Kg7 {[%clk 00:00:37]} {[%emt 00:00:09]} 32. Qg5 {[%clk 00:00:59]} {[%emt
00:00:11]} Rf8 {[%clk 00:00:10]} {[%emt 00:00:33]} 33. Qxe5+ {[%clk 00:00:40]}
{[%emt 00:00:24]} Kg8 {[%clk 00:00:10]} {[%emt 00:00:02]} 34. Rxf8+ {[%clk
00:00:40]} {[%emt 00:00:05]} Kxf8 {[%clk 00:00:10]} {[%emt 00:00:02]} 35. Qh8+
{[%clk 00:00:34]} {[%emt 00:00:13]} Kf7 {[%clk 00:00:10]} {[%emt 00:00:06]} 36.
Qxh7+ {[%clk 00:00:34]} {[%emt 00:00:03]} Kf6 {[%clk 00:00:10]} 37. Qh4+ {[%clk
00:00:13]} {[%emt 00:00:29]} Kf7 {[%clk 00:00:09]} {[%emt 00:00:05]} 38. Qf4+
{[%clk 00:00:13]} {[%emt 00:00:02]} Kg8 {[%clk 00:00:07]} {[%emt 00:00:06]} 39.
Qd6 {[%clk 00:00:11]} {[%emt 00:00:09]} Qa7 {[%clk 00:00:07]} {[%emt 00:00:04]}
40. Kh1 {[%clk 00:00:11]} {[%emt 00:00:05]} Kg7 {[%clk 00:00:07]} {[%emt
00:00:02]} 41. h4 {[%clk 00:00:11]} {[%emt 00:00:03]} b3 {[%clk 00:00:07]}
{[%emt 00:00:04]} 42. axb3 {[%clk 00:00:10]} {[%emt 00:00:06]} Nxb3 {[%clk
00:00:07]} {[%emt 00:00:01]} 43. h5 {[%clk 00:00:10]} {[%emt 00:00:03]} gxh5
{[%clk 00:00:06]} {[%emt 00:00:06]} 44. Nxh5+ {[%clk 00:00:10]} {[%emt
00:00:02]} Kh8 {[%clk 00:00:06]} {[%emt 00:00:03]} 45. Qf6+ {[%clk 00:00:10]}
{[%emt 00:00:04]} Kh7 {[%emt 00:00:11]} 46. d6 1-0

[Event "Chpt France Universitaire 2024"]
[Site "Bastia, France"]
[Date "2024.04.06"]
[Round "4.5"]
[White "Bosc, Seraphina"]
[Black "Mathieu, Phileas"]
[Result "1-0"]
[TimeControl "15min+5s"]
[WhiteElo "2216"]
[BlackElo "2325"]

1. b3 {[%clk 00:15:05]} {[%emt 00:00:03]} c5 {[%clk 00:15:05]} 2. Bb2 {[%clk
00:15:05]} {[%emt 00:00:01]} Nc6 {[%clk 00:15:05]} 3. Nf3 {[%clk 00:15:05]}
{[%emt 00:00:04]} d6 {[%clk 00:15:05]} 4. e3 {[%clk 00:15:05]} {[%emt
00:00:03]} e5 {[%clk 00:15:05]} 5. c4 {[%clk 00:14:48]} {[%emt 00:00:22]} Nf6
{[%clk 00:13:34]} {[%emt 00:01:36]} 6. d3 {[%clk 00:14:32]} {[%emt 00:00:21]}
g6 {[%clk 00:13:31]} {[%emt 00:00:08]} 7. Be2 {[%clk 00:14:29]} Bg7 {[%clk
00:13:31]} 8. O-O {[%clk 00:14:29]} O-O {[%clk 00:13:31]} 9. Nc3 {[%clk
00:14:29]} b6 {[%clk 00:13:31]} 10. Nd2 {[%clk 00:14:29]} Bb7 {[%clk 00:13:31]}
11. Bf3 {[%clk 00:14:29]} Bc8 {[%clk 00:13:29]} {[%emt 00:00:59]} 12. Qe2
{[%clk 00:13:28]} Bb7 {[%clk 00:13:29]} 13. Nde4 {[%clk 00:13:28]} Nxe4 {[%clk
00:13:29]} 14. Bxe4 {[%clk 00:13:28]} f5 {[%clk 00:13:29]} 15. Bf3 {[%clk
00:13:28]} Qd7 {[%clk 00:13:29]} 16. a3 {[%clk 00:13:28]} Rae8 {[%clk
00:13:29]} 17. Rab1 {[%clk 00:13:28]} h6 {[%clk 00:13:29]} 18. b4 {[%clk
00:13:28]} Kh7 {[%clk 00:13:29]} 19. b5 {[%clk 00:13:28]} Nd4 {[%clk 00:13:29]}
20. exd4 {[%clk 00:13:28]} exd4 {[%clk 00:13:29]} 21. Qd2 {[%clk 00:13:28]}
Bxf3 {[%clk 00:13:29]} 22. gxf3 {[%clk 00:13:28]} dxc3 {[%clk 00:13:29]} 23.
Bxc3 {[%clk 00:13:28]} Bxc3 {[%clk 00:13:29]} 24. Qxc3 {[%clk 00:13:28]} f4
{[%clk 00:03:37]} {[%emt 00:19:19]} 25. Rfe1 {[%clk 00:06:29]} Qg7 {[%clk
00:03:37]} 26. Qd2 {[%clk 00:06:29]} Qd4 {[%clk 00:03:27]} {[%emt 00:00:33]} 27.
Rxe8 {[%clk 00:06:10]} Rxe8 {[%clk 00:03:27]} 28. Re1 {[%clk 00:06:10]} Re5
{[%clk 00:03:27]} 29. Rxe5 {[%clk 00:06:10]} Qxe5 {[%clk 00:03:27]} 30. Kg2
{[%clk 00:06:10]} Kg7 {[%clk 00:03:27]} 31. a4 {[%clk 00:06:10]} Kf6 {[%clk
00:03:27]} 32. a5 {[%clk 00:06:10]} g5 {[%clk 00:03:27]} 33. axb6 {[%clk
00:06:10]} axb6 {[%clk 00:03:27]} 34. Qa2 {[%clk 00:06:10]} h5 {[%clk
00:01:25]} {[%emt 00:04:22]} 35. Qa3 {[%clk 00:04:55]} g4 {[%clk 00:01:25]} 36.
Qa8 {[%clk 00:04:55]} Qf5 {[%clk 00:01:25]} 37. Qd8+ {[%clk 00:04:55]} Ke5
{[%clk 00:01:25]} 38. Qh8+ {[%clk 00:04:55]} Ke6 {[%clk 00:01:25]} 1-0

[Event "Chpt France Universitaire 2024"]
[Site "Bastia, France"]
[Date "2024.04.06"]
[Round "4.6"]
[White "Dalaud, Dorian"]
[Black "Djidjeli, Sarah"]
[Result "1-0"]
[TimeControl "15min+5s"]
[WhiteElo "2307"]
[BlackElo "2080"]

1. e4 {[%clk 00:15:05]} {[%emt 00:00:03]} c5 {[%clk 00:15:05]} 2. Nc3 {[%clk
00:15:00]} {[%emt 00:00:11]} Nc6 {[%clk 00:15:05]} {[%emt 00:00:01]} 3. Bb5
{[%clk 00:15:00]} Nd4 {[%clk 00:15:05]} {[%emt 00:00:01]} 4. Nf3 {[%clk
00:15:00]} a6 {[%clk 00:15:05]} {[%emt 00:00:04]} 5. Bd3 {[%clk 00:15:00]}
{[%emt 00:00:02]} g6 {[%clk 00:15:05]} {[%emt 00:00:02]} 6. Nxd4 {[%clk
00:14:39]} {[%emt 00:00:26]} cxd4 {[%clk 00:15:05]} 7. Ne2 {[%clk 00:14:39]}
{[%emt 00:00:01]} Bg7 {[%clk 00:15:05]} {[%emt 00:00:01]} 8. c3 {[%clk
00:14:28]} {[%emt 00:00:16]} dxc3 {[%clk 00:15:05]} {[%emt 00:00:03]} 9. dxc3
{[%clk 00:14:28]} {[%emt 00:00:02]} d6 {[%clk 00:14:26]} {[%emt 00:00:45]} 10.
O-O {[%clk 00:14:18]} {[%emt 00:00:14]} Nf6 {[%clk 00:14:26]} {[%emt 00:00:03]}
11. a4 {[%clk 00:14:17]} {[%emt 00:00:06]} O-O {[%clk 00:14:23]} {[%emt
00:00:07]} 12. Nf4 {[%clk 00:13:52]} {[%emt 00:00:30]} d5 {[%clk 00:13:26]}
{[%emt 00:01:02]} 13. exd5 {[%clk 00:13:50]} {[%emt 00:00:07]} Nxd5 {[%clk
00:13:26]} {[%emt 00:00:01]} 14. Be4 {[%clk 00:13:50]} {[%emt 00:00:01]} Nxf4
{[%clk 00:13:15]} {[%emt 00:00:16]} 15. Bxf4 {[%clk 00:13:50]} {[%emt
00:00:03]} e5 {[%clk 00:13:15]} {[%emt 00:00:03]} 16. Be3 {[%clk 00:13:17]}
{[%emt 00:00:36]} Qc7 {[%clk 00:12:22]} {[%emt 00:00:59]} 17. Qb3 {[%clk
00:13:06]} {[%emt 00:00:16]} Rb8 {[%clk 00:11:53]} {[%emt 00:00:35]} 18. Ba7
{[%clk 00:13:06]} {[%emt 00:00:04]} Ra8 {[%clk 00:11:50]} {[%emt 00:00:08]} 19.
Bb6 {[%clk 00:13:06]} {[%emt 00:00:02]} Qe7 {[%clk 00:11:37]} {[%emt 00:00:16]}
20. a5 {[%clk 00:12:33]} {[%emt 00:00:40]} Be6 {[%clk 00:11:37]} {[%emt
00:00:04]} 21. Qb4 {[%clk 00:12:02]} {[%emt 00:00:36]} Qxb4 {[%clk 00:09:59]}
{[%emt 00:01:43]} 22. cxb4 {[%emt 00:00:01]} Rab8 23. Ba7 {[%clk 00:10:25]}
{[%emt 00:01:42]} f5 {[%clk 00:08:31]} {[%emt 00:01:34]} 24. Bxb8 {[%clk
00:10:03]} {[%emt 00:00:27]} Rxb8 {[%clk 00:08:31]} 25. Bb1 {[%clk 00:08:44]}
{[%emt 00:01:24]} Bf8 {[%clk 00:08:06]} {[%emt 00:00:30]} 26. Ba2 {[%clk
00:08:05]} {[%emt 00:00:44]} Bxa2 {[%clk 00:08:06]} {[%emt 00:00:06]} 27. Rxa2
{[%clk 00:08:05]} {[%emt 00:00:01]} Bxb4 {[%clk 00:08:06]} 28. Ra4 {[%clk
00:08:05]} {[%emt 00:00:04]} Be7 {[%clk 00:07:31]} {[%emt 00:00:39]} 29. Rc4
{[%clk 00:06:20]} {[%emt 00:01:51]} b6 {[%clk 00:07:31]} {[%emt 00:00:02]} 30.
Rfc1 {[%clk 00:05:37]} {[%emt 00:00:46]} bxa5 {[%clk 00:06:08]} {[%emt
00:01:30]} 31. Rc8+ {[%clk 00:05:37]} {[%emt 00:00:02]} Rxc8 {[%clk 00:06:08]}
32. Rxc8+ {[%clk 00:05:37]} {[%emt 00:00:02]} Kf7 {[%clk 00:06:08]} 33. Rc6
{[%clk 00:05:34]} {[%emt 00:00:08]} h6 {[%clk 00:06:05]} {[%emt 00:00:08]} 34.
Rxa6 {[%clk 00:05:34]} {[%emt 00:00:02]} Bb4 {[%clk 00:06:05]} {[%emt
00:00:02]} 35. Kf1 {[%clk 00:05:29]} {[%emt 00:00:10]} Kg7 {[%clk 00:05:47]}
{[%emt 00:00:19]} 36. Ke2 {[%clk 00:05:29]} {[%emt 00:00:07]} e4 {[%clk
00:05:33]} {[%emt 00:00:19]} 37. Ke3 {[%clk 00:05:27]} {[%emt 00:00:06]} Bc5+
{[%clk 00:05:33]} {[%emt 00:00:04]} 38. Ke2 {[%clk 00:05:18]} {[%emt 00:00:14]}
Bd4 {[%clk 00:05:31]} {[%emt 00:00:07]} 39. b3 {[%clk 00:05:10]} {[%emt
00:00:14]} Bc3 {[%clk 00:05:31]} {[%emt 00:00:01]} 40. f3 {[%clk 00:04:23]}
{[%emt 00:00:52]} exf3+ {[%clk 00:05:31]} {[%emt 00:00:01]} 41. gxf3 {[%clk
00:03:53]} {[%emt 00:00:35]} h5 {[%clk 00:04:39]} {[%emt 00:00:57]} 42. h4
{[%clk 00:02:21]} {[%emt 00:01:37]} Kf7 {[%clk 00:04:16]} {[%emt 00:00:29]} 43.
Kd3 {[%clk 00:02:06]} {[%emt 00:00:19]} Be1 {[%clk 00:04:13]} {[%emt 00:00:06]}
44. Kd4 {[%clk 00:01:48]} {[%emt 00:00:25]} Bd2 {[%clk 00:03:08]} {[%emt
00:01:09]} 45. Kc5 {[%clk 00:00:42]} {[%emt 00:01:11]} Bb4+ {[%clk 00:03:08]}
{[%emt 00:00:04]} 46. Kd5 {[%clk 00:00:35]} {[%emt 00:00:13]} Be1 {[%clk
00:03:07]} {[%emt 00:00:05]} 47. Kc4 {[%emt 00:00:15]} Bb4 {[%clk 00:03:04]}
{[%emt 00:00:06]} 48. Kd3 {[%clk 00:00:16]} {[%emt 00:00:17]} Be1 {[%clk
00:03:04]} {[%emt 00:00:03]} 49. Ke3 {[%clk 00:00:16]} {[%emt 00:00:05]} Bb4
{[%clk 00:03:02]} {[%emt 00:00:06]} 50. Rc6 {[%clk 00:00:16]} {[%emt 00:00:03]}
Be1 {[%clk 00:02:59]} {[%emt 00:00:08]} 51. Rc5 {[%clk 00:00:16]} {[%emt
00:00:04]} Bb4 {[%clk 00:02:58]} {[%emt 00:00:05]} 52. Rc4 {[%clk 00:00:11]}
{[%emt 00:00:10]} Kf6 {[%clk 00:02:58]} {[%emt 00:00:01]} 53. Kd4 {[%clk
00:00:11]} {[%emt 00:00:02]} Be1 {[%clk 00:02:18]} {[%emt 00:00:45]} 54. Kd5
{[%clk 00:00:11]} {[%emt 00:00:04]} Bb4 {[%clk 00:01:59]} {[%emt 00:00:23]} 55.
Rc6+ {[%clk 00:00:11]} {[%emt 00:00:02]} Kf7 {[%clk 00:01:59]} {[%emt
00:00:01]} 56. Ke5 {[%clk 00:00:11]} {[%emt 00:00:05]} Be1 {[%clk 00:01:55]}
{[%emt 00:00:09]} 57. Rc7+ {[%clk 00:00:11]} {[%emt 00:00:02]} Ke8 {[%clk
00:01:33]} {[%emt 00:00:25]} 58. Kf6 {[%clk 00:00:11]} {[%emt 00:00:02]} Bxh4+
{[%clk 00:01:33]} {[%emt 00:00:03]} 59. Kxg6 {[%clk 00:00:11]} {[%emt
00:00:02]} Bg3 {[%clk 00:01:33]} 60. Ra7 {[%clk 00:00:11]} {[%emt 00:00:06]} h4
{[%clk 00:01:26]} {[%emt 00:00:12]} 61. Rxa5 {[%clk 00:00:11]} {[%emt
00:00:02]} h3 {[%clk 00:01:26]} 62. Rxf5 {[%clk 00:00:10]} {[%emt 00:00:06]} h2
{[%clk 00:01:26]} 63. Rh5 {[%clk 00:00:10]} {[%emt 00:00:02]} Ke7 {[%clk
00:01:26]} {[%emt 00:00:05]} 64. Kf5 {[%clk 00:00:10]} {[%emt 00:00:02]} Kd6
{[%clk 00:01:26]} {[%emt 00:00:02]} 65. Kg4 {[%clk 00:00:10]} {[%emt 00:00:04]}
Be5 {[%clk 00:01:17]} {[%emt 00:00:15]} 66. f4 {[%clk 00:00:10]} {[%emt
00:00:01]} Bf6 {[%clk 00:01:17]} {[%emt 00:00:04]} 67. Rxh2 {[%emt 00:00:04]}
Kc5 68. Kf5 {[%clk 00:00:10]} {[%emt 00:00:03]} Kd5 {[%emt 00:00:29]} 1-0

[Event "Chpt France Universitaire 2024"]
[Site "Bastia, France"]
[Date "2024.04.06"]
[Round "4.7"]
[White "Baroyan, Davit"]
[Black "Gryshko, Vitalii"]
[Result "0-1"]
[TimeControl "15min+5s"]
[WhiteElo "2118"]
[BlackElo "2288"]

1. Nf3 {[%clk 00:15:05]} c5 {[%clk 00:15:05]} 2. b3 {[%clk 00:15:05]} {[%emt
00:00:02]} Nc6 {[%clk 00:15:05]} {[%emt 00:00:05]} 3. g3 {[%clk 00:15:05]}
{[%emt 00:00:05]} d6 {[%clk 00:15:00]} {[%emt 00:00:10]} 4. d4 {[%clk
00:15:05]} {[%emt 00:00:03]} cxd4 {[%clk 00:15:00]} {[%emt 00:00:03]} 5. Nxd4
{[%clk 00:15:05]} {[%emt 00:00:01]} e5 {[%clk 00:15:00]} 6. Nxc6 {[%clk
00:14:47]} {[%emt 00:00:24]} bxc6 {[%clk 00:15:00]} {[%emt 00:00:01]} 7. Bg2
{[%clk 00:14:47]} d5 {[%clk 00:14:54]} {[%emt 00:00:11]} 8. O-O {[%clk
00:14:47]} {[%emt 00:00:04]} Bc5 {[%clk 00:14:52]} {[%emt 00:00:07]} 9. c4
{[%clk 00:14:47]} {[%emt 00:00:05]} Ne7 {[%clk 00:14:52]} {[%emt 00:00:02]} 10.
Nc3 {[%clk 00:13:38]} {[%emt 00:01:14]} d4 {[%clk 00:14:31]} {[%emt 00:00:26]}
11. Na4 {[%clk 00:13:38]} {[%emt 00:00:05]} Bb4 {[%clk 00:13:57]} {[%emt
00:00:39]} 12. a3 {[%clk 00:12:48]} {[%emt 00:00:57]} Ba5 {[%clk 00:13:57]} 13.
e3 {[%clk 00:12:48]} {[%emt 00:00:02]} Bf5 {[%clk 00:13:01]} {[%emt 00:01:00]}
14. exd4 {[%clk 00:12:43]} {[%emt 00:00:10]} exd4 {[%clk 00:12:59]} {[%emt
00:00:06]} 15. Bb2 {[%clk 00:12:24]} {[%emt 00:00:24]} O-O {[%clk 00:12:20]}
{[%emt 00:00:45]} 16. b4 {[%clk 00:12:11]} {[%emt 00:00:18]} Bc7 {[%clk
00:12:11]} {[%emt 00:00:13]} 17. Qxd4 {[%clk 00:12:11]} {[%emt 00:00:02]} Qxd4
{[%clk 00:12:05]} {[%emt 00:00:11]} 18. Bxd4 {[%clk 00:12:11]} {[%emt
00:00:02]} Bc2 {[%clk 00:10:39]} {[%emt 00:01:31]} 19. Nc3 {[%clk 00:09:28]}
{[%emt 00:02:48]} Rfd8 {[%clk 00:09:25]} {[%emt 00:01:19]} 20. Bc5 {[%clk
00:09:21]} {[%emt 00:00:13]} Bd6 {[%clk 00:09:25]} {[%emt 00:00:01]} 21. Bxd6
{[%clk 00:08:55]} {[%emt 00:00:32]} Rxd6 {[%clk 00:09:25]} 22. Rfe1 {[%clk
00:06:29]} {[%emt 00:02:31]} Kf8 {[%clk 00:09:21]} {[%emt 00:00:08]} 23. Rac1
{[%clk 00:05:28]} {[%emt 00:01:07]} Bb3 {[%clk 00:09:15]} {[%emt 00:00:10]} 24.
Ne4 {[%clk 00:05:11]} {[%emt 00:00:23]} Rd4 {[%clk 00:09:02]} {[%emt 00:00:18]}
25. c5 {[%clk 00:04:24]} {[%emt 00:00:52]} a5 {[%clk 00:09:02]} {[%emt
00:00:01]} 26. Ng5 {[%clk 00:02:40]} {[%emt 00:01:50]} Nd5 {[%clk 00:08:34]}
{[%emt 00:00:33]} 27. Nxh7+ {[%clk 00:01:56]} {[%emt 00:00:50]} Kg8 {[%clk
00:08:34]} 28. Ng5 {[%clk 00:01:56]} {[%emt 00:00:03]} axb4 {[%clk 00:08:33]}
{[%emt 00:00:07]} 29. axb4 {[%clk 00:01:56]} Nxb4 {[%clk 00:08:33]} {[%emt
00:00:01]} 30. Re7 {[%clk 00:01:49]} {[%emt 00:00:12]} g6 {[%clk 00:04:51]}
{[%emt 00:03:47]} 31. Rb7 {[%clk 00:01:35]} {[%emt 00:00:19]} Nd3 {[%clk
00:04:20]} {[%emt 00:00:35]} 32. Rb1 {[%clk 00:01:02]} {[%emt 00:00:39]} Nxc5
{[%clk 00:03:36]} {[%emt 00:00:49]} 33. Rb6 {[%clk 00:01:02]} {[%emt 00:00:02]}
Bd5 {[%clk 00:02:15]} {[%emt 00:01:25]} 34. Bxd5 {[%clk 00:00:56]} {[%emt
00:00:11]} Rxd5 {[%clk 00:02:15]} 35. Nf3 {[%clk 00:00:55]} {[%emt 00:00:07]}
Ra3 {[%clk 00:01:25]} {[%emt 00:00:54]} 36. Kg2 {[%clk 00:00:47]} {[%emt
00:00:13]} Ne4 {[%clk 00:00:54]} {[%emt 00:00:35]} 37. R1b2 {[%emt 00:00:03]}
c5 {[%clk 00:00:51]} {[%emt 00:00:07]} 38. Rc6 {[%clk 00:00:47]} Rc3 {[%clk
00:00:45]} {[%emt 00:00:10]} 39. Rc7 {[%clk 00:00:47]} {[%emt 00:00:05]} Rf5
{[%clk 00:00:36]} {[%emt 00:00:14]} 40. Re2 {[%clk 00:00:44]} {[%emt 00:00:08]}
Rcxf3 {[%clk 00:00:34]} {[%emt 00:00:06]} 41. Rxe4 {[%clk 00:00:44]} {[%emt
00:00:02]} Rxf2+ {[%emt 00:00:01]} 42. Kh3 {[%clk 00:00:44]} {[%emt 00:00:05]}
Rh5+ {[%clk 00:00:34]} {[%emt 00:00:01]} 43. Kg4 {[%clk 00:00:44]} {[%emt
00:00:03]} f5# {[%clk 00:00:34]} {[%emt 00:00:01]} 0-1